[Event "Titled Tuesday Blitz March 07 Late 2023"]
[White "Berezin, Viktor"]
[Black "Nilsen, Tobias Lang"]
[WhiteFideId "14107872"]
[BlackFideId "1521624"]
[WhiteElo "2310"]
[BlackElo "2183"]
[Result "1-0"]
[Round "10"]
[TimeControl "180+2"]
[Date "2023.03.07"]
[WhiteClock "0:00:06"]
[BlackClock "0:00:10"]

1. d4 {[%clk 0:03:00]}  d5 {[%clk 0:02:59]} 2. c4 {[%clk 0:03:00]}  e6 {[%clk 0:03:00]} 3. Nf3 {[%clk 0:02:59]}  c6 {[%clk 0:03:01]} 4. Qc2 {[%clk 0:02:58]}  Nf6 {[%clk 0:02:58]} 5. g3 {[%clk 0:02:58]}  dxc4 {[%clk 0:02:57]} 6. Qxc4 {[%clk 0:02:58]}  b5 {[%clk 0:02:56]} 7. Qc2 {[%clk 0:02:58]}  Bb7 {[%clk 0:02:57]} 8. Bg2 {[%clk 0:02:57]}  Nbd7 {[%clk 0:02:57]} 9. O-O {[%clk 0:02:56]}  Rc8 {[%clk 0:02:57]} 10. Nc3 {[%clk 0:02:52]}  b4 {[%clk 0:02:57]} 11. Na4 {[%clk 0:02:52]}  c5 {[%clk 0:02:57]} 12. Nxc5 {[%clk 0:02:51]}  Nxc5 {[%clk 0:02:58]} 13. dxc5 {[%clk 0:02:51]}  Bxc5 {[%clk 0:02:58]} 14. Qd1 {[%clk 0:02:44]}  Qxd1 {[%clk 0:02:56]} 15. Rxd1 {[%clk 0:02:44]}  O-O {[%clk 0:02:57]} 16. Bf4 {[%clk 0:02:35]}  Rfd8 {[%clk 0:02:56]} 17. Rxd8+ {[%clk 0:02:31]}  Rxd8 {[%clk 0:02:57]} 18. Rc1 {[%clk 0:02:31]}  Bb6 {[%clk 0:02:56]} 19. e3 {[%clk 0:02:16]}  Nd5 {[%clk 0:02:51]} 20. Be5 {[%clk 0:02:16]}  f6 {[%clk 0:02:48]} 21. Bd4 {[%clk 0:02:16]}  e5 {[%clk 0:02:45]} 22. Bxb6 {[%clk 0:02:12]}  Nxb6 {[%clk 0:02:46]} 23. h4 {[%clk 0:02:07]}  Kf7 {[%clk 0:02:40]} 24. Nxe5+ {[%clk 0:02:02]}  fxe5 {[%clk 0:02:38]} 25. Bxb7 {[%clk 0:02:01]}  Rd2 {[%clk 0:02:38]} 26. Rc7+ {[%clk 0:01:58]}  Kf6 {[%clk 0:02:37]} 27. Be4 {[%clk 0:01:55]}  Rxb2 {[%clk 0:02:34]} 28. Rxa7 {[%clk 0:01:55]}  Nc4 {[%clk 0:02:03]} 29. Bd5 {[%clk 0:01:53]}  Nd6 {[%clk 0:02:02]} 30. Ra6 {[%clk 0:01:43]}  Ke7 {[%clk 0:02:02]} 31. Ra7+ {[%clk 0:01:44]}  Kf6 {[%clk 0:02:02]} 32. h5 {[%clk 0:01:41]}  h6 {[%clk 0:01:49]} 33. Rd7 {[%clk 0:01:38]}  Nf5 {[%clk 0:01:48]} 34. g4 {[%clk 0:01:09]}  Ne7 {[%clk 0:01:41]} 35. Bb3 {[%clk 0:01:00]}  g6 {[%clk 0:01:07]} 36. hxg6 {[%clk 0:00:40]}  Nxg6 {[%clk 0:01:06]} 37. Kg2 {[%clk 0:00:41]}  Kg5 {[%clk 0:01:03]} 38. Kg3 {[%clk 0:00:37]}  h5 {[%clk 0:00:55]} 39. gxh5 {[%clk 0:00:29]}  Kxh5 {[%clk 0:00:55]} 40. Rb7 {[%clk 0:00:29]}  Kg5 {[%clk 0:00:45]} 41. Rxb4 {[%clk 0:00:29]}  Ne7 {[%clk 0:00:45]} 42. Kf3 {[%clk 0:00:24]}  Nf5 {[%clk 0:00:43]} 43. a4 {[%clk 0:00:15]}  Nh4+ {[%clk 0:00:39]} 44. Ke4 {[%clk 0:00:12]}  Rxf2 {[%clk 0:00:34]} 45. Kxe5 {[%clk 0:00:12]}  Rb2 {[%clk 0:00:32]} 46. a5 {[%clk 0:00:11]}  Nf3+ {[%clk 0:00:32]} 47. Kd5 {[%clk 0:00:08]}  Nd2 {[%clk 0:00:32]} 48. a6 {[%clk 0:00:07]}  Nxb3 {[%clk 0:00:30]} 49. Ra4 {[%clk 0:00:04]}  Rd2+ {[%clk 0:00:28]} 50. Kc4 {[%clk 0:00:04]}  Rd8 {[%clk 0:00:09]} 51. Kxb3 {[%clk 0:00:04]}  Kf5 {[%clk 0:00:09]} 52. Kc3 {[%clk 0:00:04]}  Ke5 {[%clk 0:00:09]} 53. a7 {[%clk 0:00:04]}  Ra8 {[%clk 0:00:09]} 54. Kd3 {[%clk 0:00:04]}  Kd6 {[%clk 0:00:10]} 55. Kd4 {[%clk 0:00:04]}  Ke6 {[%clk 0:00:11]} 56. e4 {[%clk 0:00:05]}  Kd6 {[%clk 0:00:11]} 57. Ra6+ {[%clk 0:00:05]}  Kd7 {[%clk 0:00:11]} 58. Kd5 {[%clk 0:00:05]}  Ke7 {[%clk 0:00:12]} 59. e5 {[%clk 0:00:05]}  Kd7 {[%clk 0:00:12]} 60. e6+ {[%clk 0:00:05]}  Ke7 {[%clk 0:00:12]} 61. Ke5 {[%clk 0:00:06]}  Ke8 {[%clk 0:00:13]} 62. Kf6 {[%clk 0:00:05]}  Kf8 {[%clk 0:00:12]} 63. Ra1 {[%clk 0:00:06]}  Kg8 {[%clk 0:00:07]} 64. Ke7 {[%clk 0:00:05]}  Kg7 {[%clk 0:00:08]} 65. Kd7 {[%clk 0:00:05]}  Kf6 {[%clk 0:00:08]} 66. e7 {[%clk 0:00:04]}  Kf7 {[%clk 0:00:08]} 67. Rf1+ {[%clk 0:00:04]}  Kg6 {[%clk 0:00:09]} 68. e8=Q+ {[%clk 0:00:04]}  Rxe8 {[%clk 0:00:10]} 69. Kxe8 {[%clk 0:00:05]}  Kg5 {[%clk 0:00:10]} 70. a8=Q {[%clk 0:00:06]} 1-0


[Site "https://www.chess.com"]

[Event "Titled Tuesday Blitz March 07 Late 2023"]
[White "Saveliev, Alexei"]
[Black "Krzyzanowski, Marcin"]
[WhiteFideId "24128546"]
[BlackFideId "1132199"]
[WhiteElo "2271"]
[BlackElo "2471"]
[Result "1/2-1/2"]
[Round "10"]
[TimeControl "180+2"]
[Date "2023.03.07"]
[WhiteClock "0:00:17"]
[BlackClock "0:00:03"]

1. c4 {[%clk 0:03:00]}  e5 {[%clk 0:02:57]} 2. Nc3 {[%clk 0:03:01]}  Nf6 {[%clk 0:02:57]} 3. Nf3 {[%clk 0:03:02]}  Nc6 {[%clk 0:02:57]} 4. e3 {[%clk 0:03:02]}  Bb4 {[%clk 0:02:54]} 5. Qc2 {[%clk 0:03:02]}  O-O {[%clk 0:02:49]} 6. Nd5 {[%clk 0:03:03]}  Re8 {[%clk 0:02:45]} 7. Qf5 {[%clk 0:03:02]}  Be7 {[%clk 0:02:22]} 8. Nxe5 {[%clk 0:02:50]}  d6 {[%clk 0:02:11]} 9. Nxc6 {[%clk 0:02:47]}  bxc6 {[%clk 0:01:58]} 10. Nxe7+ {[%clk 0:02:43]}  Qxe7 {[%clk 0:01:59]} 11. Qc2 {[%clk 0:02:44]}  d5 {[%clk 0:01:53]} 12. d4 {[%clk 0:02:39]}  Rb8 {[%clk 0:01:45]} 13. Bd3 {[%clk 0:02:35]}  dxc4 {[%clk 0:01:38]} 14. Bxc4 {[%clk 0:02:36]}  Qb4+ {[%clk 0:01:14]} 15. Qc3 {[%clk 0:02:32]}  Qxc3+ {[%clk 0:01:12]} 16. bxc3 {[%clk 0:02:33]}  Ne4 {[%clk 0:01:13]} 17. O-O {[%clk 0:02:06]}  Nxc3 {[%clk 0:01:12]} 18. Bd2 {[%clk 0:02:06]}  Nd5 {[%clk 0:01:01]} 19. Rab1 {[%clk 0:02:01]}  Bf5 {[%clk 0:01:00]} 20. Rxb8 {[%clk 0:01:58]}  Rxb8 {[%clk 0:01:01]} 21. Bb3 {[%clk 0:01:52]}  Be6 {[%clk 0:00:39]} 22. Rc1 {[%clk 0:01:50]}  Ne7 {[%clk 0:00:39]} 23. Bxe6 {[%clk 0:01:30]}  fxe6 {[%clk 0:00:40]} 24. a3 {[%clk 0:01:30]}  Rb6 {[%clk 0:00:37]} 25. g3 {[%clk 0:01:21]}  Kf7 {[%clk 0:00:37]} 26. Kg2 {[%clk 0:01:21]}  Ra6 {[%clk 0:00:35]} 27. Bb4 {[%clk 0:01:17]}  Nd5 {[%clk 0:00:35]} 28. Bc5 {[%clk 0:01:18]}  Nb6 {[%clk 0:00:34]} 29. Kf3 {[%clk 0:01:06]}  Nd7 {[%clk 0:00:30]} 30. Ke4 {[%clk 0:01:01]}  Nxc5+ {[%clk 0:00:26]} 31. Rxc5 {[%clk 0:01:02]}  Ke7 {[%clk 0:00:25]} 32. Rc3 {[%clk 0:00:58]}  Kd6 {[%clk 0:00:25]} 33. f4 {[%clk 0:00:57]}  Rb6 {[%clk 0:00:24]} 34. Rc5 {[%clk 0:00:51]}  Ra6 {[%clk 0:00:22]} 35. Rg5 {[%clk 0:00:36]}  g6 {[%clk 0:00:22]} 36. h4 {[%clk 0:00:37]}  Rxa3 {[%clk 0:00:21]} 37. h5 {[%clk 0:00:37]}  gxh5 {[%clk 0:00:16]} 38. Rxh5 {[%clk 0:00:38]}  a5 {[%clk 0:00:17]} 39. Rxh7 {[%clk 0:00:38]}  Ra1 {[%clk 0:00:17]} 40. g4 {[%clk 0:00:38]}  a4 {[%clk 0:00:17]} 41. Rh8 {[%clk 0:00:38]}  c5 {[%clk 0:00:12]} 42. dxc5+ {[%clk 0:00:37]}  Kxc5 {[%clk 0:00:12]} 43. g5 {[%clk 0:00:34]}  Rg1 {[%clk 0:00:10]} 44. Ra8 {[%clk 0:00:34]}  Kb4 {[%clk 0:00:10]} 45. Ke5 {[%clk 0:00:35]}  c5 {[%clk 0:00:11]} 46. Kf6 {[%clk 0:00:18]}  c4 {[%clk 0:00:10]} 47. e4 {[%clk 0:00:13]}  c3 {[%clk 0:00:10]} 48. f5 {[%clk 0:00:13]}  exf5 {[%clk 0:00:08]} 49. exf5 {[%clk 0:00:14]}  c2 {[%clk 0:00:08]} 50. Rb8+ {[%clk 0:00:14]}  Ka3 {[%clk 0:00:04]} 51. Rc8 {[%clk 0:00:15]}  c1=Q {[%clk 0:00:05]} 52. Rxc1 {[%clk 0:00:14]}  Rxc1 {[%clk 0:00:05]} 53. g6 {[%clk 0:00:15]}  Rg1 {[%clk 0:00:04]} 54. Kg7 {[%clk 0:00:13]}  Kb3 {[%clk 0:00:04]} 55. f6 {[%clk 0:00:14]}  a3 {[%clk 0:00:05]} 56. f7 {[%clk 0:00:14]}  a2 {[%clk 0:00:05]} 57. f8=Q {[%clk 0:00:15]}  a1=Q+ {[%clk 0:00:06]} 58. Qf6 {[%clk 0:00:16]}  Qa7+ {[%clk 0:00:05]} 59. Qf7+ {[%clk 0:00:15]}  Qxf7+ {[%clk 0:00:02]} 60. Kxf7 {[%clk 0:00:16]}  Kc4 {[%clk 0:00:02]} 61. g7 {[%clk 0:00:17]}  Kd5 {[%clk 0:00:02]} 62. g8=Q {[%clk 0:00:16]}  Rxg8 {[%clk 0:00:03]} 63. Kxg8 {[%clk 0:00:17]} 1/2-1/2


[Site "https://www.chess.com"]

[Event "Titled Tuesday Blitz March 07 Late 2023"]
[White "Iskusnyh, Sergei"]
[Black "Filgueira, Hernan"]
[WhiteFideId "4120027"]
[BlackFideId "101770"]
[WhiteElo "2492"]
[BlackElo "2363"]
[Result "1-0"]
[Round "10"]
[TimeControl "180+2"]
[Date "2023.03.07"]
[WhiteClock "0:00:11"]
[BlackClock "0:00:15"]

1. d4 {[%clk 0:03:00]}  d5 {[%clk 0:02:59]} 2. c4 {[%clk 0:03:01]}  e6 {[%clk 0:02:59]} 3. Nf3 {[%clk 0:03:01]}  Nf6 {[%clk 0:02:58]} 4. g3 {[%clk 0:03:01]}  Bb4+ {[%clk 0:02:56]} 5. Bd2 {[%clk 0:03:00]}  Be7 {[%clk 0:02:55]} 6. Bg2 {[%clk 0:03:00]}  O-O {[%clk 0:02:55]} 7. O-O {[%clk 0:03:01]}  c6 {[%clk 0:02:55]} 8. Qc2 {[%clk 0:03:00]}  b6 {[%clk 0:02:53]} 9. a3 {[%clk 0:02:44]}  Ba6 {[%clk 0:02:51]} 10. cxd5 {[%clk 0:02:43]}  cxd5 {[%clk 0:02:51]} 11. Bb4 {[%clk 0:02:43]}  Bxb4 {[%clk 0:02:32]} 12. axb4 {[%clk 0:02:42]}  Qe7 {[%clk 0:02:33]} 13. Qa4 {[%clk 0:02:17]}  Bxe2 {[%clk 0:02:31]} 14. Re1 {[%clk 0:02:15]}  Bxf3 {[%clk 0:02:18]} 15. Bxf3 {[%clk 0:02:14]}  Nbd7 {[%clk 0:02:16]} 16. Nc3 {[%clk 0:02:13]}  Qd8 {[%clk 0:02:03]} 17. b5 {[%clk 0:02:08]}  Qc7 {[%clk 0:02:00]} 18. Rec1 {[%clk 0:02:03]}  Rfc8 {[%clk 0:01:55]} 19. Na2 {[%clk 0:01:45]}  Qd6 {[%clk 0:01:51]} 20. Nb4 {[%clk 0:01:32]}  Rc7 {[%clk 0:01:22]} 21. Rc6 {[%clk 0:01:25]}  Rxc6 {[%clk 0:01:13]} 22. bxc6 {[%clk 0:01:24]}  Nf8 {[%clk 0:01:13]} 23. Na6 {[%clk 0:00:51]}  Ne8 {[%clk 0:01:10]} 24. b4 {[%clk 0:00:50]}  Nc7 {[%clk 0:01:06]} 25. b5 {[%clk 0:00:47]}  Rc8 {[%clk 0:00:57]} 26. h4 {[%clk 0:00:40]}  g6 {[%clk 0:00:55]} 27. h5 {[%clk 0:00:39]}  Kg7 {[%clk 0:00:55]} 28. Nxc7 {[%clk 0:00:37]}  Rxc7 {[%clk 0:00:55]} 29. Qb3 {[%clk 0:00:31]}  Qe7 {[%clk 0:00:49]} 30. Qe3 {[%clk 0:00:30]}  Qf6 {[%clk 0:00:46]} 31. Kg2 {[%clk 0:00:30]}  gxh5 {[%clk 0:00:45]} 32. Rh1 {[%clk 0:00:28]}  h6 {[%clk 0:00:37]} 33. Rxh5 {[%clk 0:00:27]}  Nh7 {[%clk 0:00:37]} 34. Be2 {[%clk 0:00:23]}  Ng5 {[%clk 0:00:31]} 35. Bd3 {[%clk 0:00:22]}  Nh7 {[%clk 0:00:27]} 36. f4 {[%clk 0:00:21]}  Nf8 {[%clk 0:00:26]} 37. Rh4 {[%clk 0:00:20]}  Ng6 {[%clk 0:00:26]} 38. Rh5 {[%clk 0:00:18]}  Nf8 {[%clk 0:00:25]} 39. f5 {[%clk 0:00:16]}  Re7 {[%clk 0:00:22]} 40. Qf4 {[%clk 0:00:15]}  e5 {[%clk 0:00:20]} 41. dxe5 {[%clk 0:00:15]}  Rxe5 {[%clk 0:00:20]} 42. Rxh6 {[%clk 0:00:13]}  Re1 {[%clk 0:00:16]} 43. Rxf6 {[%clk 0:00:12]}  Kxf6 {[%clk 0:00:15]} 44. Qd6+ {[%clk 0:00:11]} 1-0


[Site "https://www.chess.com"]

[Event "Titled Tuesday Blitz March 07 Late 2023"]
[White "Rostomyan, Mikayel"]
[Black "Mirzoev, Azer"]
[WhiteFideId "13313754"]
[BlackFideId "13400304"]
[WhiteElo "2009"]
[BlackElo "2525"]
[Result "0-1"]
[Round "10"]
[TimeControl "180+2"]
[Date "2023.03.07"]
[WhiteClock "0:00:03"]
[BlackClock "0:00:09"]

1. e4 {[%clk 0:03:00]}  c5 {[%clk 0:03:00]} 2. Nf3 {[%clk 0:02:59]}  d6 {[%clk 0:03:00]} 3. d4 {[%clk 0:02:56]}  cxd4 {[%clk 0:03:00]} 4. Nxd4 {[%clk 0:02:57]}  Nf6 {[%clk 0:03:01]} 5. Nc3 {[%clk 0:02:55]}  a6 {[%clk 0:03:01]} 6. f3 {[%clk 0:02:55]}  Nbd7 {[%clk 0:03:00]} 7. Be3 {[%clk 0:02:54]}  b5 {[%clk 0:02:57]} 8. a4 {[%clk 0:02:49]}  bxa4 {[%clk 0:02:54]} 9. Nxa4 {[%clk 0:02:32]}  e6 {[%clk 0:02:50]} 10. Be2 {[%clk 0:02:26]}  Bb7 {[%clk 0:02:50]} 11. O-O {[%clk 0:02:25]}  Be7 {[%clk 0:02:50]} 12. c4 {[%clk 0:02:23]}  O-O {[%clk 0:02:49]} 13. b4 {[%clk 0:02:22]}  Qc7 {[%clk 0:02:44]} 14. Qb3 {[%clk 0:02:14]}  Rfb8 {[%clk 0:02:42]} 15. Rfc1 {[%clk 0:02:12]}  h5 {[%clk 0:02:40]} 16. b5 {[%clk 0:02:07]}  h4 {[%clk 0:02:28]} 17. h3 {[%clk 0:01:59]}  Nc5 {[%clk 0:02:22]} 18. Nxc5 {[%clk 0:01:59]}  dxc5 {[%clk 0:02:22]} 19. Nc2 {[%clk 0:01:57]}  Nh5 {[%clk 0:02:15]} 20. Rd1 {[%clk 0:01:12]}  Bd6 {[%clk 0:02:05]} 21. b6 {[%clk 0:00:40]}  Bh2+ {[%clk 0:01:58]} 22. Kf1 {[%clk 0:00:37]}  Qe5 {[%clk 0:01:43]} 23. Ra5 {[%clk 0:00:33]}  Ng3+ {[%clk 0:01:29]} 24. Kf2 {[%clk 0:00:30]}  Nxe4+ {[%clk 0:00:58]} 25. fxe4 {[%clk 0:00:28]}  Qg3+ {[%clk 0:00:58]} 26. Kf1 {[%clk 0:00:26]}  Bxe4 {[%clk 0:00:58]} 27. Ne1 {[%clk 0:00:20]}  Rxb6 {[%clk 0:00:38]} 28. Qxb6 {[%clk 0:00:20]}  Qxe3 {[%clk 0:00:38]} 29. Qxc5 {[%clk 0:00:21]}  Qc3 {[%clk 0:00:34]} 30. Ra3 {[%clk 0:00:19]}  Qb2 {[%clk 0:00:33]} 31. Re3 {[%clk 0:00:07]}  Bb7 {[%clk 0:00:25]} 32. Qd4 {[%clk 0:00:06]}  Qb4 {[%clk 0:00:20]} 33. c5 {[%clk 0:00:04]}  Qa5 {[%clk 0:00:20]} 34. Qc3 {[%clk 0:00:04]}  Qc7 {[%clk 0:00:19]} 35. Bf3 {[%clk 0:00:04]}  Bxf3 {[%clk 0:00:18]} 36. Nxf3 {[%clk 0:00:05]}  Bf4 {[%clk 0:00:18]} 37. Red3 {[%clk 0:00:05]}  Rc8 {[%clk 0:00:17]} 38. c6 {[%clk 0:00:05]}  Bg3 {[%clk 0:00:16]} 39. Qc2 {[%clk 0:00:03]}  Qb6 {[%clk 0:00:15]} 40. c7 {[%clk 0:00:02]}  Bxc7 {[%clk 0:00:11]} 41. Rd8+ {[%clk 0:00:02]}  Rxd8 {[%clk 0:00:10]} 42. Rxd8+ {[%clk 0:00:02]}  Bxd8 {[%clk 0:00:10]} 43. Nxh4 {[%clk 0:00:03]}  Bxh4 {[%clk 0:00:09]} 0-1


[Site "https://www.chess.com"]

[Event "Titled Tuesday Blitz March 07 Late 2023"]
[White "Nunez V, Gustavo Eduardo"]
[Black "Duda, Jan-Krzysztof"]
[WhiteFideId "4403690"]
[BlackFideId "1170546"]
[WhiteElo "2228"]
[BlackElo "2790"]
[Result "0-1"]
[Round "10"]
[TimeControl "180+2"]
[Date "2023.03.07"]
[WhiteClock "0:00:48"]
[BlackClock "0:02:28"]

1. e4 {[%clk 0:03:00]}  e6 {[%clk 0:03:00]} 2. d3 {[%clk 0:03:00]}  Ke7 {[%clk 0:03:01]} 3. Nd2 {[%clk 0:03:00]}  f6 {[%clk 0:03:00]} 4. g3 {[%clk 0:03:01]}  d5 {[%clk 0:03:01]} 5. Bg2 {[%clk 0:03:02]}  d4 {[%clk 0:03:00]} 6. Ne2 {[%clk 0:03:02]}  c5 {[%clk 0:03:00]} 7. c3 {[%clk 0:03:02]}  Nc6 {[%clk 0:03:01]} 8. cxd4 {[%clk 0:03:03]}  cxd4 {[%clk 0:03:02]} 9. O-O {[%clk 0:03:03]}  e5 {[%clk 0:03:01]} 10. a3 {[%clk 0:03:00]}  a5 {[%clk 0:03:00]} 11. a4 {[%clk 0:02:57]}  Be6 {[%clk 0:02:58]} 12. b3 {[%clk 0:02:57]}  Kd7 {[%clk 0:02:59]} 13. Nc4 {[%clk 0:02:56]}  Bb4 {[%clk 0:02:57]} 14. Bd2 {[%clk 0:02:55]}  Nge7 {[%clk 0:02:56]} 15. Bxb4 {[%clk 0:02:55]}  Nxb4 {[%clk 0:02:57]} 16. Nc1 {[%clk 0:02:52]}  Nec6 {[%clk 0:02:57]} 17. Na2 {[%clk 0:02:52]}  Qe7 {[%clk 0:02:47]} 18. Nb6+ {[%clk 0:02:30]}  Kc7 {[%clk 0:02:48]} 19. Nxa8+ {[%clk 0:02:30]}  Rxa8 {[%clk 0:02:48]} 20. Nxb4 {[%clk 0:02:30]}  Qxb4 {[%clk 0:02:49]} 21. Rb1 {[%clk 0:02:29]}  Kb6 {[%clk 0:02:49]} 22. Qc2 {[%clk 0:02:29]}  Rc8 {[%clk 0:02:48]} 23. Rfc1 {[%clk 0:02:28]}  Nb8 {[%clk 0:02:48]} 24. Qd1 {[%clk 0:02:25]}  Rc3 {[%clk 0:02:46]} 25. f4 {[%clk 0:02:19]}  Na6 {[%clk 0:02:43]} 26. fxe5 {[%clk 0:02:18]}  fxe5 {[%clk 0:02:43]} 27. Qh5 {[%clk 0:02:18]}  Qc5 {[%clk 0:02:43]} 28. Rd1 {[%clk 0:02:13]}  Nb4 {[%clk 0:02:42]} 29. Bf1 {[%clk 0:02:07]}  Bxb3 {[%clk 0:02:41]} 30. Re1 {[%clk 0:02:05]}  Bxa4 {[%clk 0:02:40]} 31. Qxh7 {[%clk 0:02:00]}  Bc2 {[%clk 0:02:40]} 32. Rb2 {[%clk 0:01:58]}  a4 {[%clk 0:02:40]} 33. Ra1 {[%clk 0:01:55]}  a3 {[%clk 0:02:39]} 34. Rxc2 {[%clk 0:01:46]}  Nxc2 {[%clk 0:02:40]} 35. Rb1+ {[%clk 0:01:45]}  Qb4 {[%clk 0:02:41]} 36. Rxb4+ {[%clk 0:01:38]}  Nxb4 {[%clk 0:02:41]} 37. Qg8 {[%clk 0:01:27]}  a2 {[%clk 0:02:36]} 38. Qd8+ {[%clk 0:01:27]}  Kb5 {[%clk 0:02:36]} 39. Qa8 {[%clk 0:01:24]}  b6 {[%clk 0:02:34]} 40. Bh3 {[%clk 0:01:14]}  Rc1+ {[%clk 0:02:32]} 41. Kf2 {[%clk 0:01:14]}  a1=Q {[%clk 0:02:31]} 42. Bd7+ {[%clk 0:01:14]}  Nc6 {[%clk 0:02:30]} 43. Bxc6+ {[%clk 0:01:14]}  Kb4 {[%clk 0:02:30]} 44. Qf8+ {[%clk 0:01:13]}  Kc3 {[%clk 0:02:30]} 45. Qxg7 {[%clk 0:01:08]}  Rg1 {[%clk 0:02:29]} 46. Ba4 {[%clk 0:00:48]}  Qf1# {[%clk 0:02:28]} 0-1


[Site "https://www.chess.com"]

[Event "Titled Tuesday Blitz March 07 Late 2023"]
[White "Carbone, Diego"]
[Black "Harsh Suresh"]
[WhiteFideId "3002179"]
[BlackFideId "45018464"]
[WhiteElo "2266"]
[BlackElo "2227"]
[Result "0-1"]
[Round "10"]
[TimeControl "180+2"]
[Date "2023.03.07"]
[WhiteClock "0:00:01"]
[BlackClock "0:00:02"]

1. d4 {[%clk 0:03:00]}  g6 {[%clk 0:02:59]} 2. c4 {[%clk 0:03:01]}  Bg7 {[%clk 0:02:59]} 3. Nf3 {[%clk 0:03:01]}  d6 {[%clk 0:02:51]} 4. g3 {[%clk 0:02:56]}  b6 {[%clk 0:02:51]} 5. Bg2 {[%clk 0:02:56]}  Bb7 {[%clk 0:02:51]} 6. O-O {[%clk 0:02:57]}  Nd7 {[%clk 0:02:51]} 7. Nc3 {[%clk 0:02:57]}  e6 {[%clk 0:02:51]} 8. h3 {[%clk 0:02:51]}  Ne7 {[%clk 0:02:51]} 9. e4 {[%clk 0:02:51]}  O-O {[%clk 0:02:50]} 10. Bg5 {[%clk 0:02:51]}  h6 {[%clk 0:02:49]} 11. Be3 {[%clk 0:02:51]}  Kh7 {[%clk 0:02:48]} 12. Qd2 {[%clk 0:02:51]}  e5 {[%clk 0:02:45]} 13. b3 {[%clk 0:02:41]}  Nc6 {[%clk 0:02:39]} 14. d5 {[%clk 0:02:38]}  Ne7 {[%clk 0:02:39]} 15. Ne1 {[%clk 0:02:33]}  f5 {[%clk 0:02:34]} 16. Nd3 {[%clk 0:02:33]}  Nf6 {[%clk 0:02:28]} 17. f4 {[%clk 0:02:28]}  Nxe4 {[%clk 0:01:37]} 18. Nxe4 {[%clk 0:02:21]}  fxe4 {[%clk 0:01:38]} 19. Bxe4 {[%clk 0:02:21]}  exf4 {[%clk 0:01:24]} 20. Nxf4 {[%clk 0:02:19]}  Bxa1 {[%clk 0:01:23]} 21. Rxa1 {[%clk 0:02:14]}  Bc8 {[%clk 0:01:21]} 22. Ne6 {[%clk 0:01:35]}  Bxe6 {[%clk 0:01:19]} 23. dxe6 {[%clk 0:01:36]}  Nf5 {[%clk 0:01:01]} 24. Bxa8 {[%clk 0:01:34]}  Qxa8 {[%clk 0:01:01]} 25. Rf1 {[%clk 0:01:18]}  Re8 {[%clk 0:00:32]} 26. g4 {[%clk 0:01:15]}  Ng3 {[%clk 0:00:31]} 27. Rf7+ {[%clk 0:01:12]}  Kg8 {[%clk 0:00:31]} 28. Qd5 {[%clk 0:01:03]}  Qxd5 {[%clk 0:00:10]} 29. cxd5 {[%clk 0:01:03]}  Ne2+ {[%clk 0:00:10]} 30. Kg2 {[%clk 0:00:46]}  Nc3 {[%clk 0:00:11]} 31. Bxh6 {[%clk 0:00:30]}  Nxd5 {[%clk 0:00:11]} 32. Rg7+ {[%clk 0:00:30]}  Kh8 {[%clk 0:00:12]} 33. Rxg6 {[%clk 0:00:31]}  Kh7 {[%clk 0:00:12]} 34. Rg5 {[%clk 0:00:26]}  Nf4+ {[%clk 0:00:11]} 35. Kf3 {[%clk 0:00:26]}  Nxe6 {[%clk 0:00:11]} 36. Rh5 {[%clk 0:00:23]}  Nd4+ {[%clk 0:00:11]} 37. Kf2 {[%clk 0:00:18]}  Re2+ {[%clk 0:00:10]} 38. Kf1 {[%clk 0:00:19]}  Kg6 {[%clk 0:00:07]} 39. Bf8 {[%clk 0:00:05]}  Rxa2 {[%clk 0:00:06]} 40. h4 {[%clk 0:00:05]}  Nxb3 {[%clk 0:00:05]} 41. Rg5+ {[%clk 0:00:05]}  Kf7 {[%clk 0:00:06]} 42. Bh6 {[%clk 0:00:06]}  Nd4 {[%clk 0:00:06]} 43. Rg7+ {[%clk 0:00:06]}  Ke6 {[%clk 0:00:05]} 44. Rxc7 {[%clk 0:00:07]}  a5 {[%clk 0:00:05]} 45. g5 {[%clk 0:00:07]}  a4 {[%clk 0:00:05]} 46. g6 {[%clk 0:00:08]}  Ra1+ {[%clk 0:00:04]} 47. Kf2 {[%clk 0:00:08]}  Ra2+ {[%clk 0:00:05]} 48. Kg3 {[%clk 0:00:08]}  Nf5+ {[%clk 0:00:05]} 49. Kg4 {[%clk 0:00:05]}  Nxh6+ {[%clk 0:00:06]} 50. Kg5 {[%clk 0:00:06]}  Nf5 {[%clk 0:00:06]} 51. Rc8 {[%clk 0:00:05]}  Rg2+ {[%clk 0:00:06]} 52. Kh5 {[%clk 0:00:05]}  a3 {[%clk 0:00:06]} 53. Re8+ {[%clk 0:00:05]}  Ne7 {[%clk 0:00:06]} 54. Kh6 {[%clk 0:00:04]}  Rxg6+ {[%clk 0:00:05]} 55. Kh7 {[%clk 0:00:05]}  Rg2 {[%clk 0:00:06]} 56. h5 {[%clk 0:00:05]}  a2 {[%clk 0:00:06]} 57. Ra8 {[%clk 0:00:06]}  Kf7 {[%clk 0:00:06]} 58. h6 {[%clk 0:00:06]}  b5 {[%clk 0:00:06]} 59. Kh8 {[%clk 0:00:06]}  Rg8+ {[%clk 0:00:06]} 60. Kh7 {[%clk 0:00:04]}  Rg2 {[%clk 0:00:04]} 61. Kh8 {[%clk 0:00:05]}  b4 {[%clk 0:00:04]} 62. h7 {[%clk 0:00:05]}  Rf2 {[%clk 0:00:02]} 63. Rf8+ {[%clk 0:00:05]}  Ke6 {[%clk 0:00:02]} 64. Rxf2 {[%clk 0:00:03]}  a1=Q+ {[%clk 0:00:02]} 65. Rf6+ {[%clk 0:00:01]}  Qxf6# {[%clk 0:00:02]} 0-1


[Site "https://www.chess.com"]